bitfinex-derivatives/quotes_BTCF0:USTF0_20250528
["timestamp","ask_amount","ask_price","bid_price","bid_amount"]
[1748414306743,0.80238864,108700.0,108690.0,0.76504957]
[1748414308442,0.80238864,108700.0,108690.0,0.76492957]
[1748414308652,0.80238864,108700.0,108690.0,0.76504957]
[1748414308940,0.80238864,108700.0,108690.0,0.7083216]
[1748414309950,0.80239656,108700.0,108690.0,0.7083216]
[1748414311339,0.80239656,108700.0,108690.0,0.70854414]
[1748414313864,0.80239857,108700.0,108690.0,0.70854414]
[1748414314953,0.80239857,108700.0,108690.0,0.28662414]
[1748414315250,0.80239857,108700.0,108690.0,0.70854414]
[1748414315444,0.80239857,108700.0,108690.0,0.70842414]
[1748414315644,0.80239857,108700.0,108690.0,0.70854414]
[1748414316452,0.7649044,108700.0,108690.0,0.76527211]
[1748414320349,0.88674038,108700.0,108690.0,0.76527211]
[1748414321156,0.7649044,108700.0,108690.0,0.76527211]
[1748414323761,0.88674038,108700.0,108690.0,0.34335211]
[1748414323953,0.88674038,108700.0,108690.0,0.76523211]
[1748414325258,0.88674038,108700.0,108690.0,0.58135051]
[1748414325461,0.88674038,108700.0,108690.0,0.76527211]
[1748414325964,0.88674038,108700.0,108690.0,0.58135051]
[1748414326268,0.1839216,108690.0,108680.0,0.07231242]
[1748414326563,0.1839385,108680.0,108670.0,0.17300679]
[1748414326766,0.91131026,108680.0,108670.0,0.00276052]
[1748414327054,0.91131026,108680.0,108670.0,0.00288052]
[1748414327255,0.91131026,108680.0,108670.0,0.01567533]
[1748414327256,1.42136844,108680.0,108670.0,0.01567533]
[1748414327458,1.42136844,108680.0,108670.0,0.01558109]
[1748414327656,1.42136844,108680.0,108670.0,0.01570109]
[1748414327958,1.13499081,108680.0,108670.0,0.00276052]
[1748414328150,1.14640015,108680.0,108670.0,0.01656216]
[1748414328355,1.14640015,108680.0,108670.0,0.00376052]
[1748414328762,1.14640015,108680.0,108670.0,0.00388052]
[1748414329057,1.02449259,108680.0,108670.0,0.00388052]
[1748414329262,0.71660015,108680.0,108670.0,0.00388052]
[1748414329461,0.71019081,108680.0,108670.0,0.01668466]
[1748414329663,0.74179081,108680.0,108670.0,0.00388052]
[1748414329864,0.77299081,108680.0,108670.0,0.01668264]
[1748414330053,0.77299081,108680.0,108670.0,0.0166826]
[1748414330249,0.77499081,108680.0,108670.0,0.00488052]
[1748414330449,0.77702752,108680.0,108670.0,0.00488052]
[1748414330855,0.73750988,108680.0,108670.0,0.03588052]
[1748414331655,0.61560232,108680.0,108670.0,0.21983512]
[1748414331864,0.73750988,108680.0,108670.0,0.21983512]
[1748414332161,0.61560232,108680.0,108670.0,0.21983512]
[1748414332365,0.73750988,108680.0,108670.0,0.21983512]
[1748414333166,0.73750988,108680.0,108670.0,0.25113512]
[1748414335763,0.61560232,108680.0,108670.0,0.25113512]
[1748414336069,0.61560232,108680.0,108670.0,0.37304268]
[1748414336379,0.61560232,108680.0,108670.0,0.25113512]
[1748414337862,0.25480232,108680.0,108670.0,0.25113512]
[1748414338566,0.22420232,108680.0,108670.0,0.7904004]
[1748414338965,0.00906382,108680.0,108670.0,0.7904004]
[1748414339260,0.19300162,108680.0,108670.0,0.7904004]
[1748414339467,0.00906382,108680.0,108670.0,0.7904004]
[1748414339872,0.00906382,108680.0,108670.0,0.8824164]
[1748414342057,0.00906382,108680.0,108670.0,0.89679081]
[1748414343881,0.00906382,108680.0,108670.0,1.93999081]
[1748414344175,0.29361883,108700.0,108690.0,0.1839208]
[1748414344368,0.28024283,108700.0,108690.0,1.25542535]
[1748414344573,0.28024283,108700.0,108690.0,1.32022535]
[1748414344757,0.24834283,108700.0,108690.0,1.32022535]
[1748414344961,0.06443753,108700.0,108690.0,1.32022535]
[1748414345161,0.24834143,108700.0,108690.0,1.32022535]
[1748414345358,0.24934143,108700.0,108690.0,1.32022535]
[1748414345562,0.24934143,108700.0,108690.0,1.26366836]
[1748414345767,0.28034143,108700.0,108690.0,1.26366836]
[1748414346674,0.28134143,108700.0,108690.0,1.26366836]
[1748414346868,0.28034143,108700.0,108690.0,1.26766836]
[1748414347064,0.27934143,108700.0,108690.0,1.26766836]
[1748414347260,0.28034143,108700.0,108690.0,0.7879608]
[1748414348475,0.28034143,108700.0,108690.0,0.7880808]
[1748414350179,0.76304899,108700.0,108690.0,0.7555608]
[1748414350366,0.76304899,108700.0,108690.0,0.7554008]
[1748414350561,0.76304899,108700.0,108690.0,0.7555208]
[1748414350968,0.76304899,108700.0,108690.0,0.7554008]
[1748414351163,0.76304899,108700.0,108690.0,0.7555208]
[1748414351164,0.64114143,108700.0,108690.0,0.7555208]
[1748414351866,0.64114143,108700.0,108690.0,0.7881208]
[1748414354175,0.64114143,108700.0,108690.0,0.7555208]
[1748414355575,0.64114143,108700.0,108690.0,0.5716]
[1748414355774,0.64114143,108700.0,108690.0,0.7555208]
[1748414363588,0.64114143,108700.0,108690.0,0.7233208]
[1748414364289,0.64114143,108700.0,108690.0,0.7542208]
[1748414366300,0.64114143,108700.0,108690.0,0.7853208]
[1748414366594,0.64114143,108700.0,108690.0,0.90722836]
[1748414367791,0.28034143,108700.0,108690.0,0.90722836]
[1748414368094,0.28034143,108700.0,108690.0,1.26802836]
[1748414368291,0.28034143,108700.0,108690.0,1.32458535]
[1748414368490,0.28034143,108700.0,108690.0,1.26802836]
[1748414369193,0.28034143,108700.0,108690.0,1.2027974]
[1748414369496,0.28034143,108700.0,108690.0,1.32470496]
[1748414370493,0.28034143,108700.0,108690.0,1.35130496]
[1748414371293,0.28034143,108700.0,108690.0,1.32470496]
[1748414374302,0.28034143,108700.0,108690.0,1.2027974]
[1748414374504,0.28034143,108700.0,108690.0,1.35130496]
[1748414375799,0.26824143,108700.0,108690.0,1.35130496]
[1748414376195,0.26824143,108700.0,108690.0,1.2293974]
[1748414376400,0.26824143,108700.0,108690.0,1.35130496]
[1748414377601,0.0336,108700.0,108690.0,1.41653592]
[1748414377797,0.32196133,108710.0,108700.0,0.1839036]
[1748414377798,0.03103753,108710.0,108700.0,0.1839036]
[1748414377999,0.2772011,108720.0,108710.0,0.1838866]
[1748414378000,0.0013802,108720.0,108710.0,0.1838866]
[1748414378197,0.2170499,108720.0,108710.0,0.93107416]
[1748414378402,0.2170499,108720.0,108710.0,1.00196648]
[1748414379007,0.2170499,108720.0,108710.0,1.00096648]
[1748414379208,0.2461697,108720.0,108710.0,1.00096648]
[1748414379416,0.2791697,108720.0,108710.0,1.00096648]
[1748414379601,0.2791697,108720.0,108710.0,0.93007416]
[1748414380417,0.2791697,108720.0,108710.0,1.29087416]
[1748414380612,0.2791697,108720.0,108710.0,1.36276648]
[1748414380914,0.2791697,108720.0,108710.0,1.34849683]
[1748414385100,0.2791697,108720.0,108710.0,1.29187416]
[1748414389415,0.2791697,108720.0,108710.0,1.29099416]
[1748414391206,0.2791697,108720.0,108710.0,0.93019416]
[1748414391409,0.2791697,108720.0,108710.0,1.29099416]
[1748414392414,0.2791697,108720.0,108710.0,1.34761683]
[1748414394110,0.2791697,108720.0,108710.0,1.19250927]
[1748414394309,0.2791697,108720.0,108710.0,1.31441683]
[1748414395220,0.2791697,108720.0,108710.0,1.25779416]
[1748414395405,0.2791697,108720.0,108710.0,1.31435115]
[1748414397207,0.2791697,108720.0,108710.0,1.31735115]
[1748414401516,0.0953,108720.0,108710.0,1.31735115]
[1748414401912,0.0318,108720.0,108710.0,1.41490172]
[1748414402120,0.00013753,108730.0,108720.0,0.1838697]
[1748414402121,0.06123753,108730.0,108720.0,0.1838697]
[1748414402310,0.09173753,108730.0,108720.0,0.95577714]
[1748414402721,0.09173753,108730.0,108720.0,0.88488482]
[1748414403418,0.09273753,108730.0,108720.0,0.95561532]
[1748414403622,0.09273753,108730.0,108720.0,0.88488482]
[1748414404024,0.09273753,108730.0,108720.0,0.88788482]
[1748414404429,0.09273753,108730.0,108720.0,2.0013366]
[1748414404827,0.09273753,108730.0,108720.0,1.93986117]
[1748414405218,0.09173753,108730.0,108720.0,1.94186117]
[1748414405924,0.27559043,108730.0,108720.0,1.955337]
[1748414406129,0.27559043,108730.0,108720.0,1.80122944]
[1748414406837,0.27559043,108730.0,108720.0,2.29834944]
[1748414407028,0.27559043,108730.0,108720.0,1.76934944]
[1748414407230,0.27559043,108730.0,108720.0,1.85413366]
[1748414407424,0.27559043,108730.0,108720.0,1.37622944]
[1748414407622,0.27559043,108730.0,108720.0,1.37634944]
[1748414407825,0.27559043,108730.0,108720.0,1.96189879]
[1748414408329,0.27559043,108730.0,108720.0,1.96201879]
[1748414408529,0.27559043,108730.0,108720.0,1.96001879]
[1748414409634,0.27559043,108730.0,108720.0,1.95701879]
[1748414409826,0.09173753,108730.0,108720.0,1.95801879]
[1748414410026,0.27559043,108730.0,108720.0,2.35201879]
[1748414413550,0.27559043,108730.0,108720.0,1.82297879]
[1748414413852,0.27559043,108730.0,108720.0,2.35157879]
[1748414414744,0.27559043,108730.0,108720.0,1.29781488]
[1748414414946,0.27559043,108730.0,108720.0,1.39937488]
[1748414415147,0.27559043,108730.0,108720.0,1.76978553]
[1748414415447,0.27559043,108730.0,108720.0,1.89169309]
[1748414415652,0.27559043,108730.0,108720.0,1.89181309]
[1748414415855,0.27559043,108730.0,108720.0,1.89169309]
[1748414416149,0.27659043,108730.0,108720.0,1.89081309]
[1748414417347,0.27659043,108730.0,108720.0,1.89057309]
[1748414417941,0.27659043,108730.0,108720.0,1.36209309]
[1748414418148,0.27659043,108730.0,108720.0,1.89049309]
[1748414419250,0.27659043,108730.0,108720.0,1.92159309]
[1748414419452,0.27659043,108730.0,108720.0,2.28239309]
[1748414419753,0.27659043,108730.0,108720.0,2.33902244]
[1748414420544,0.27659043,108730.0,108720.0,2.24831488]
[1748414420749,0.27659043,108730.0,108720.0,2.37122244]
[1748414421144,0.27559043,108730.0,108720.0,2.37122244]
[1748414421648,0.27559043,108730.0,108720.0,2.24931488]
[1748414421854,0.27559043,108730.0,108720.0,2.37122244]
[1748414422052,0.27559043,108730.0,108720.0,2.34002244]
[1748414422448,0.27559043,108730.0,108720.0,1.72389309]
[1748414422754,0.27559043,108730.0,108720.0,2.13050553]
[1748414422938,0.27559043,108730.0,108720.0,2.13038553]
[1748414423144,0.27559043,108730.0,108720.0,2.13074553]
[1748414423452,0.27559043,108730.0,108720.0,2.12974553]
[1748414423638,0.27559043,108730.0,108720.0,2.18637488]
[1748414423843,0.27559043,108730.0,108720.0,2.18625488]
[1748414424040,0.27559043,108730.0,108720.0,2.18637488]
[1748414424755,0.27659043,108730.0,108720.0,2.18637488]
[1748414425548,0.27659043,108730.0,108720.0,2.30828244]
[1748414427459,0.27659043,108730.0,108720.0,1.77952244]
[1748414427649,0.27659043,108730.0,108720.0,2.30828244]
[1748414427854,0.27659043,108730.0,108720.0,2.34048244]
[1748414430247,0.09273753,108730.0,108720.0,2.47046065]
[1748414431462,0.09173753,108730.0,108720.0,2.54119243]
[1748414431668,0.03063753,108730.0,108720.0,2.54119243]
[1748414431861,0.00013753,108730.0,108720.0,2.54119243]
[1748414432156,0.00013753,108730.0,108720.0,2.51731795]
[1748414432362,0.3276073,108740.0,108730.0,0.1838527]
[1748414432660,0.3276073,108740.0,108730.0,0.84835872]
[1748414432848,0.3276073,108740.0,108730.0,0.72645116]
[1748414433047,0.3276073,108740.0,108730.0,0.77030142]
[1748414434144,0.3276073,108740.0,108730.0,0.77130142]
[1748414435659,0.3276073,108740.0,108730.0,0.81816816]
[1748414436252,0.3276073,108740.0,108730.0,1.14481386]
[1748414436757,0.3276073,108740.0,108730.0,1.17703386]
[1748414437147,0.3276073,108740.0,108730.0,1.14393386]
[1748414437353,0.3286073,108740.0,108730.0,1.14381386]
[1748414437674,0.6904073,108740.0,108730.0,0.76896994]
[1748414439355,0.6904073,108740.0,108730.0,0.34196994]
[1748414439555,0.6904073,108740.0,108730.0,0.76868994]
[1748414439757,0.6904073,108740.0,108730.0,0.58483724]
[1748414439961,0.6904073,108740.0,108730.0,0.76868994]
[1748414440157,0.6904073,108740.0,108730.0,0.7120127]
[1748414440363,0.6904073,108740.0,108730.0,0.81385386]
[1748414441163,0.3296073,108740.0,108730.0,0.86073009]
[1748414441367,0.3296073,108740.0,108730.0,0.81385386]
[1748414444969,0.3296073,108740.0,108730.0,0.81329386]
[1748414448066,0.3296073,108740.0,108730.0,0.79913419]
[1748414450271,0.3296073,108740.0,108730.0,0.92104175]
[1748414451166,0.3296073,108740.0,108730.0,0.95294175]
[1748414451470,0.3296073,108740.0,108730.0,0.98344175]
[1748414452065,0.3296073,108740.0,108730.0,1.28756026]
[1748414452465,0.3286073,108740.0,108730.0,1.28856026]
[1748414453874,0.3276073,108740.0,108730.0,1.25666026]
[1748414454175,0.3276073,108740.0,108730.0,0.72918026]
[1748414454376,0.3276073,108740.0,108730.0,1.25630026]
[1748414454677,0.3276073,108740.0,108730.0,1.1343927]
[1748414454876,0.3276073,108740.0,108730.0,0.7735927]
[1748414455078,0.3276073,108740.0,108730.0,0.7997822]
[1748414455464,0.3286073,108740.0,108730.0,0.7997822]
[1748414455672,0.3296073,108740.0,108730.0,0.7987822]
[1748414456473,0.3296073,108740.0,108730.0,0.7420927]
[1748414458080,0.3296073,108740.0,108730.0,0.81293386]
[1748414460680,0.3296073,108740.0,108730.0,0.93484142]
[1748414460979,0.3296073,108740.0,108730.0,0.81293386]
[1748414461879,0.3296073,108740.0,108730.0,0.38713386]
[1748414462082,0.3296073,108740.0,108730.0,0.81265386]
[1748414466278,0.45151486,108740.0,108730.0,0.03112]
[1748414466468,0.81231486,108740.0,108730.0,0.52556]
[1748414466672,0.81231486,108740.0,108730.0,0.58228342]
[1748414466971,0.81231486,108740.0,108730.0,0.58216342]
[1748414467285,0.81231486,108740.0,108730.0,0.58228342]
[1748414467575,0.6904073,108740.0,108730.0,0.52556]
[1748414467883,0.6904073,108740.0,108730.0,0.7094129]
[1748414468176,0.3296073,108740.0,108730.0,0.89372046]
[1748414468379,0.3296073,108740.0,108730.0,1.35646162]
[1748414469374,0.3286073,108740.0,108730.0,1.35746162]
[1748414470668,0.3276073,108740.0,108730.0,1.35746162]
[1748414475886,0.3276073,108740.0,108730.0,1.35728982]
[1748414483478,0.2816483,108740.0,108730.0,1.35728982]
[1748414483680,0.2816483,108740.0,108730.0,1.47902558]
[1748414484890,0.2816483,108740.0,108730.0,1.35728982]
[1748414488201,0.2816483,108740.0,108730.0,1.23555406]
[1748414488399,0.2816483,108740.0,108730.0,1.35728982]
[1748414489294,0.2816483,108740.0,108730.0,0.93216982]
[1748414489593,0.2816483,108740.0,108730.0,1.35588982]
[1748414493497,0.0857,108740.0,108730.0,1.35588982]
[1748414493697,0.2695395,108740.0,108730.0,1.35588982]
[1748414496098,0.2695395,108740.0,108730.0,0.99508982]
[1748414496290,0.2695395,108740.0,108730.0,1.35588982]
[1748414497901,0.2695395,108740.0,108730.0,0.99496982]
[1748414498200,0.2695395,108740.0,108730.0,1.35576982]
[1748414500002,0.2695395,108740.0,108730.0,0.81031406]
[1748414500300,0.2695395,108740.0,108730.0,1.35544982]
[1748414502402,0.2695395,108740.0,108730.0,1.32434982]
[1748414504606,0.2695395,108740.0,108730.0,1.20261406]
[1748414504908,0.2695395,108740.0,108730.0,1.32434982]
[1748414508414,0.0857,108740.0,108730.0,1.32434982]
[1748414508606,0.0857,108740.0,108730.0,1.35744982]
[1748414508805,0.2695396,108740.0,108730.0,1.35744982]
[1748414509991,0.2695396,108740.0,108730.0,1.35644982]
[1748414510190,0.2695396,108740.0,108730.0,1.35604982]
[1748414512904,0.2695396,108740.0,108730.0,1.28520866]
[1748414513204,0.2695396,108740.0,108730.0,1.38441103]
[1748414514307,0.2695396,108740.0,108730.0,1.35131103]
[1748414515509,0.2695396,108740.0,108730.0,1.25210866]
[1748414516409,0.2695396,108740.0,108730.0,0.89130866]
[1748414516608,0.2695396,108740.0,108730.0,1.25210866]
[1748414518609,0.2695396,108740.0,108730.0,1.35131103]
[1748414518805,0.0857,108740.0,108730.0,1.35131103]
[1748414519001,0.0857,108740.0,108730.0,1.43006199]
[1748414519697,0.0857,108740.0,108730.0,1.45382433]
[1748414520105,0.0857,108740.0,108730.0,1.35462196]
[1748414520308,0.0857,108740.0,108730.0,1.45382433]
[1748414520507,0.0857,108740.0,108730.0,1.38291103]
[1748414521109,0.0857,108740.0,108730.0,1.43006398]
[1748414521905,0.0857,108740.0,108730.0,1.38291103]
[1748414522798,0.0857,108740.0,108730.0,1.38491103]
[1748414522998,0.0857,108740.0,108730.0,1.30208081]
[1748414523405,0.0857,108740.0,108730.0,1.30204081]
[1748414524917,0.0857,108740.0,108730.0,1.34918171]
[1748414527215,0.0656,108740.0,108730.0,1.42377657]
[1748414527422,0.03103753,108750.0,108740.0,0.1838397]
[1748414527615,0.06183753,108750.0,108740.0,1.25171513]
[1748414528530,0.06183753,108750.0,108740.0,1.20457423]
[1748414528726,0.06183753,108750.0,108740.0,1.25171513]
[1748414528925,0.06183753,108750.0,108740.0,1.20457423]
[1748414530630,0.09443753,108750.0,108740.0,1.20457423]
[1748414531825,0.09443753,108750.0,108740.0,2.25457423]
[1748414532440,0.09443753,108750.0,108740.0,2.25657423]
[1748414532638,0.09443753,108750.0,108740.0,2.25857423]
[1748414534736,0.09443753,108750.0,108740.0,1.20857423]
[1748414535530,0.09443753,108750.0,108740.0,1.10937186]
[1748414535731,0.09443753,108750.0,108740.0,2.15185186]
[1748414535928,0.09443753,108750.0,108740.0,2.25105423]
[1748414536542,0.09443753,108750.0,108740.0,2.15185186]
[1748414537442,0.09443753,108750.0,108740.0,2.25105423]
[1748414537740,0.09443753,108750.0,108740.0,2.15185186]
[1748414538442,0.09443753,108750.0,108740.0,2.57477186]
[1748414538845,0.09443753,108750.0,108740.0,2.54387186]
[1748414539243,0.27826023,108750.0,108740.0,2.13807473]
[1748414539442,0.27826023,108750.0,108740.0,1.43881927]
[1748414539443,0.76079599,108750.0,108740.0,1.43881927]
[1748414539743,0.76079599,108750.0,108740.0,1.8475369]
[1748414539939,0.76079599,108750.0,108740.0,2.0312566]
[1748414540144,0.76079599,108750.0,108740.0,2.0313766]
[1748414540544,0.76079599,108750.0,108740.0,2.15311236]
[1748414541447,0.76079599,108750.0,108740.0,2.14911236]
[1748414545651,0.76079599,108750.0,108740.0,2.0273766]
[1748414546245,0.76079599,108750.0,108740.0,2.14911236]
[1748414549550,0.63906023,108750.0,108740.0,2.14911236]
[1748414549759,0.76079599,108750.0,108740.0,1.10663236]
[1748414549946,0.76079599,108750.0,108740.0,0.61509236]
[1748414550143,0.76079599,108750.0,108740.0,1.13693236]
[1748414555561,0.76279599,108750.0,108740.0,1.13693236]
[1748414557852,0.76279599,108750.0,108740.0,1.0151966]
[1748414558162,0.76279599,108750.0,108740.0,1.13693236]
[1748414563264,0.76279599,108750.0,108740.0,0.4933566]
[1748414563469,0.76279599,108750.0,108740.0,1.13689236]
[1748414564055,0.76279599,108750.0,108740.0,0.71401236]
[1748414564254,0.76279599,108750.0,108740.0,1.13689236]
[1748414569156,0.76279599,108750.0,108740.0,1.0802561]
[1748414569951,0.76279599,108750.0,108740.0,1.15105473]
[1748414570467,0.76279599,108750.0,108740.0,1.15093473]
[1748414571665,0.76279599,108750.0,108740.0,1.15089473]
[1748414572556,0.76279599,108750.0,108740.0,1.19800833]
[1748414576373,0.40199599,108750.0,108740.0,1.19800833]
[1748414576564,0.76279599,108750.0,108740.0,1.19800833]
[1748414577668,0.64106023,108750.0,108740.0,1.19800833]
[1748414578168,0.76279599,108750.0,108740.0,1.19800833]
[1748414579677,0.76279599,108750.0,108740.0,1.15089473]
[1748414579877,0.76279599,108750.0,108740.0,1.02915897]
[1748414580077,0.76279599,108750.0,108740.0,1.15089473]
[1748414581881,0.76279599,108750.0,108740.0,1.19808781]
[1748414583478,0.80143029,108750.0,108740.0,1.20750704]
[1748414583681,0.80143029,108750.0,108740.0,1.13670841]
[1748414585279,0.80142967,108750.0,108740.0,1.13670841]
[1748414589475,0.80141599,108750.0,108740.0,1.13670841]
[1748414590286,0.76279599,108750.0,108740.0,1.0799761]
[1748414590475,0.64106023,108750.0,108740.0,1.21367473]
[1748414590777,0.62896023,108750.0,108740.0,1.21367473]
[1748414591081,0.75069599,108750.0,108740.0,1.21367473]
[1748414591277,0.38989599,108750.0,108740.0,1.21367473]
[1748414591581,0.37779599,108750.0,108740.0,1.21367473]
[1748414592685,0.36579599,108750.0,108740.0,1.21367473]
[1748414593375,0.36579599,108750.0,108740.0,1.1427961]
[1748414594983,0.36559599,108750.0,108740.0,1.19952168]
[1748414595671,0.39569599,108750.0,108740.0,1.19952168]
[1748414597586,0.39569599,108750.0,108740.0,1.07778592]
[1748414597885,0.39569599,108750.0,108740.0,1.19952168]
[1748414601086,0.39569599,108750.0,108740.0,1.19948168]
[1748414601289,0.39569599,108750.0,108740.0,0.74490168]
[1748414601495,0.39569599,108750.0,108740.0,1.16758168]
[1748414601783,0.75649599,108750.0,108740.0,0.83100622]
[1748414602084,0.75649599,108750.0,108740.0,1.01496562]
[1748414603079,0.75649599,108750.0,108740.0,1.13670138]
[1748414606505,0.75649599,108750.0,108740.0,1.01496562]
[1748414607288,0.75649599,108750.0,108740.0,1.13670138]
[1748414607790,0.75649599,108750.0,108740.0,1.16680138]
[1748414613199,0.39569599,108750.0,108740.0,1.16680138]
[1748414613401,0.75649599,108750.0,108740.0,1.16680138]
[1748414614498,0.75649599,108750.0,108740.0,1.1100758]
[1748414614698,0.75649599,108750.0,108740.0,1.18087443]
[1748414615301,0.74659599,108750.0,108740.0,1.18087443]
[1748414616199,0.73449599,108750.0,108740.0,1.18087443]
[1748414616700,0.73449599,108750.0,108740.0,1.21167443]
[1748414619699,0.72239599,108750.0,108740.0,1.25946396]
[1748414621512,0.60066023,108750.0,108740.0,1.25946396]
[1748414621705,0.1858227,108750.0,108740.0,1.74199972]
[1748414623104,0.2152227,108750.0,108740.0,1.74199972]
[1748414624107,0.2152227,108750.0,108740.0,1.74198519]
[1748414626507,0.2152227,108750.0,108740.0,1.49851367]
[1748414626704,0.36795846,108750.0,108740.0,1.08993867]
[1748414626907,0.39985846,108750.0,108740.0,1.21167443]
[1748414627509,0.39985846,108750.0,108740.0,1.33341019]
[1748414629611,0.39985846,108750.0,108740.0,1.21167443]
[1748414633010,0.39985846,108750.0,108740.0,1.21155443]
[1748414635410,0.2781227,108750.0,108740.0,1.33329019]
[1748414636197,0.39985846,108750.0,108740.0,1.21155443]
[1748414637307,0.39985846,108750.0,108740.0,1.25932943]
[1748414637702,0.39985846,108750.0,108740.0,1.21155443]
[1748414639104,0.39985846,108750.0,108740.0,1.19745619]
[1748414639911,0.39985846,108750.0,108740.0,1.55825619]
[1748414640111,0.2781227,108750.0,108740.0,1.55825619]
[1748414640815,0.39985846,108750.0,108740.0,1.55825619]
[1748414642709,0.2781227,108750.0,108740.0,1.55825619]
[1748414643414,0.2781227,108750.0,108740.0,1.19745619]
[1748414645416,0.23180323,108760.0,108750.0,0.1838227]
[1748414645605,0.29440323,108760.0,108750.0,0.45536241]
[1748414645803,0.31510323,108760.0,108750.0,0.45536241]
[1748414646110,0.43683899,108760.0,108750.0,0.45536241]
[1748414646311,0.79763899,108760.0,108750.0,0.45536241]
[1748414646617,0.78553899,108760.0,108750.0,0.45536241]
[1748414648208,0.42473899,108760.0,108750.0,0.45536241]
[1748414648414,0.78553899,108760.0,108750.0,0.45536241]
[1748414649610,0.78653899,108760.0,108750.0,0.45536241]
[1748414650619,0.78753899,108760.0,108750.0,0.45536241]
[1748414654318,0.78753899,108760.0,108750.0,0.55404241]
[1748414655325,0.78753899,108760.0,108750.0,0.43230665]
[1748414655522,0.78753899,108760.0,108750.0,0.55404241]
[1748414658221,0.30500323,108760.0,108750.0,0.55404241]
[1748414658528,0.24854323,108760.0,108750.0,0.49733846]
[1748414658717,0.21634323,108760.0,108750.0,0.49733846]
[1748414658918,0.21634323,108760.0,108750.0,0.56813709]
[1748414659623,0.21534323,108760.0,108750.0,0.56813709]
[1748414659828,0.21434323,108760.0,108750.0,0.56813709]
[1748414660528,0.18394323,108760.0,108750.0,0.56813709]
[1748414660824,0.18394323,108760.0,108750.0,0.67574189]
[1748414661032,0.00013753,108760.0,108750.0,0.97987422]
[1748414661817,0.00013753,108760.0,108750.0,0.85813846]
[1748414662532,0.00013753,108760.0,108750.0,0.86013846]
[1748414662720,0.00013753,108760.0,108750.0,0.93293709]
[1748414664227,0.00013753,108760.0,108750.0,1.05467285]
[1748414665531,0.00013753,108760.0,108750.0,0.93293709]
[1748414671834,0.00013753,108760.0,108750.0,1.05467285]
[1748414672428,0.00013753,108760.0,108750.0,0.57213709]
[1748414672626,0.2475923,108770.0,108760.0,0.1838058]
[1748414672828,0.2475923,108770.0,108760.0,0.99914323]
[1748414674135,0.2475889,108770.0,108760.0,0.99914323]
[1748414674339,0.0537,108770.0,108760.0,1.35994323]
[1748414674540,0.0537,108770.0,108760.0,1.30335732]
[1748414675540,0.2374889,108770.0,108760.0,0.76134156]
[1748414675731,0.39072466,108770.0,108760.0,1.28218156]
[1748414676042,0.39072466,108770.0,108760.0,1.28418156]
[1748414676550,0.39072466,108770.0,108760.0,1.28218156]
[1748414677335,0.39072466,108770.0,108760.0,1.28018156]
[1748414677638,0.39072466,108770.0,108760.0,1.35098019]
[1748414678337,0.39072466,108770.0,108760.0,0.99018019]
[1748414679130,0.2689889,108770.0,108760.0,0.99018019]
[1748414680539,0.2689889,108770.0,108760.0,0.99954972]
[1748414681032,0.2689889,108770.0,108760.0,1.04376429]
[1748414682129,0.75152466,108770.0,108760.0,0.12739594]
[1748414682335,0.75152466,108770.0,108760.0,0.57751731]
[1748414682639,0.75152466,108770.0,108760.0,0.76132311]
[1748414682841,0.75152466,108770.0,108760.0,0.76120311]
[1748414683033,0.75152466,108770.0,108760.0,0.76132311]
[1748414683635,0.75252466,108770.0,108760.0,0.76132311]
[1748414684345,0.75352466,108770.0,108760.0,0.33912311]
[1748414684534,0.75352466,108770.0,108760.0,0.76128311]
[1748414687743,0.75352466,108770.0,108760.0,0.80549768]
[1748414688144,0.75352466,108770.0,108760.0,0.80554439]
[1748414689241,0.75352466,108770.0,108760.0,0.76128311]
[1748414690146,0.75352466,108770.0,108760.0,0.24052311]
[1748414690347,0.75352466,108770.0,108760.0,0.76128311]
[1748414695048,0.39272466,108770.0,108760.0,0.76128311]
[1748414695254,0.75352466,108770.0,108760.0,0.76128311]
[1748414696345,0.75352466,108770.0,108760.0,0.79218311]
[1748414696541,0.75352466,108770.0,108760.0,0.37002311]
[1748414696753,0.75352466,108770.0,108760.0,0.79218311]
[1748414699248,0.75352466,108770.0,108760.0,0.83644894]
[1748414700456,0.75352466,108770.0,108760.0,0.65264314]
[1748414700757,0.75352466,108770.0,108760.0,0.65260314]
[1748414700943,0.75352466,108770.0,108760.0,0.83640904]
[1748414701147,0.75352466,108770.0,108760.0,0.9581448]
[1748414701758,0.75352466,108770.0,108760.0,0.9912448]
[1748414702059,0.75352466,108770.0,108760.0,0.86950904]
[1748414704259,0.75352466,108770.0,108760.0,0.90020904]
[1748414705457,0.75352466,108770.0,108760.0,0.90021094]
[1748414707749,0.75352466,108770.0,108760.0,0.71640504]
[1748414708145,0.87526042,108770.0,108760.0,0.13188504]
[1748414708350,0.87526042,108770.0,108760.0,0.60809731]
[1748414708557,0.75352466,108770.0,108760.0,0.60821731]
[1748414708952,0.75352466,108770.0,108760.0,0.65250077]
[1748414709154,0.75352466,108770.0,108760.0,0.60821731]
[1748414709358,0.79110055,108770.0,108760.0,0.60821731]
[1748414709661,0.79110046,108770.0,108760.0,0.60821731]
[1748414710662,0.79410046,108770.0,108760.0,0.60821731]
[1748414711455,0.79310046,108770.0,108760.0,0.60821731]
[1748414711654,0.79710046,108770.0,108760.0,0.60821731]
[1748414712065,0.79310046,108770.0,108760.0,0.60821731]
[1748414712255,0.79510046,108770.0,108760.0,0.60821731]
[1748414712452,0.79310046,108770.0,108760.0,0.60821731]
[1748414713060,0.91483622,108770.0,108760.0,0.18613731]
[1748414713251,0.91483622,108770.0,108760.0,0.65251805]
[1748414713657,0.87726042,108770.0,108760.0,0.65251805]
[1748414713863,0.91485276,108770.0,108760.0,0.65251805]
[1748414715061,0.91485276,108770.0,108760.0,0.23043805]
[1748414715468,0.87726042,108770.0,108760.0,0.23043805]
[1748414716563,0.91485129,108770.0,108760.0,0.03102]
[1748414716863,0.1838059,108760.0,108750.0,0.63899731]
[1748414717058,0.88157742,108760.0,108750.0,0.67129731]
[1748414717359,0.88157742,108760.0,108750.0,0.64109731]
[1748414717562,0.84927742,108760.0,108750.0,0.08889731]
[1748414717872,0.84927742,108760.0,108750.0,0.60961731]
[1748414718058,0.84927742,108760.0,108750.0,0.64191731]
[1748414718254,0.85027742,108760.0,108750.0,0.67251731]
[1748414718569,0.85956291,108760.0,108750.0,0.67251731]
[1748414718765,0.85027742,108760.0,108750.0,0.67251731]
[1748414718971,0.85127742,108760.0,108750.0,0.67251731]
[1748414721964,0.85127742,108760.0,108750.0,0.97807587]
[1748414721965,0.72954166,108760.0,108750.0,0.97807587]
[1748414722170,0.72954166,108760.0,108750.0,0.55599587]
[1748414722373,0.72954166,108760.0,108750.0,0.97803587]
[1748414723075,0.72954166,108760.0,108750.0,1.02232867]
[1748414723465,0.72954166,108760.0,108750.0,0.90059291]
[1748414723768,0.72954166,108760.0,108750.0,0.16324]
[1748414723769,0.88886586,108760.0,108750.0,0.16324]
[1748414723971,0.88886586,108760.0,108750.0,0.55298]
[1748414725075,0.88886586,108760.0,108750.0,0.58588]
[1748414725275,0.88886586,108760.0,108750.0,0.61708]
[1748414726268,0.88886722,108760.0,108750.0,0.61708]
[1748414726671,0.76713146,108760.0,108750.0,0.61708]